Workbook

Sheet Instruções

Sheet CurvaHorizontal
B2: Curva de Concordância Horizontal | F2: 1
B4: Dados da Poligonal
B5: Coordenadas | E5: Estaqueamento
B6: Pontos | C6: E | D6: N | E6: Inteira | F6: Frac | G6: Distancia
B7: A | C7: 500 | D7: 500 | E7: 100 | F7: 0 | G7: =E7*20+F7 -> 2000
B8: PI | C8: 1000 | D8: 1000
B9: B | C9: 1500 | D9: 1120
B11: Dados da Curva
B12: Raio | C12: 300 | E12: L | F12: 80
B14: Calculos Auxiliares
B15: DeltaE | C15: DeltaN | D15: D | E15: DeltaN/D
B16: =C8-C7 -> 500 | C16: =D8-D7 -> 500 | D16: =SQRT(B16^2+C16^2) -> 707.1067812 | E16: =C16/D16 -> 0.7071067812
B17: =C9-C8 -> 500 | C17: =D9-D8 -> 120 | D17: =SQRT(B17^2+C17^2) -> 514.1984053 | E17: =C17/D17 -> 0.2333729525
B18: Azimutes e AC
C19: rad | D19: Grau | E19: Minuto | F19: Segundo
B20: ψ1= | C20: =IF(B16<0,2*PI()-ACOS(E16),ACOS(E16)) -> 0.7853981634 | D20: =TRUNC(DEGREES(C20)) -> 45 | E20: =TRUNC((DEGREES(C20)-D20)*60) -> 0 | F20: =(DEGREES(C20)-(D20+E20/60))*3600 -> 0
B21: ψ2= | C21: =IF(B17<0,2*PI()-ACOS(E17),ACOS(E17)) -> 1.335251346 | D21: =TRUNC(DEGREES(C21)) -> 76 | E21: =TRUNC((DEGREES(C21)-D21)*60) -> 30 | F21: =(DEGREES(C21)-(D21+E21/60))*3600 -> 15.36018914
B22: AC= | C22: =IF(C21-C20>=PI(),C21-C20-2*PI(),IF(C21-C20<=-PI(),C21-C20+2*PI(),C21-C20)) -> 0.5498531827 | D22: =TRUNC(DEGREES(C22)) -> 31 | E22: =TRUNC((DEGREES(C22)-D22)*60) -> 30 | F22: =(DEGREES(C22)-(D22+E22/60))*3600 -> 15.36018914
B24: Ф1= | C24: =F12/(2*C12) -> 0.1333333333 | D24: q= | E24: =C26-C12*SIN(C24) -> 39.97630805 | F24: i0= | G24: =ATAN(C27/C26) -> 0.04443775267
B25: θ= | C25: =ABS(C22)-2*C24 -> 0.283186516 | D25: p= | E25: =C27-C12*(1-COS(C24)) -> 0.8883247286 | F25: j0= | G25: =C24-G24 -> 0.08889558067
B26: x0= | C26: =F12*(1-C24^2/10+C24^4/216) -> 79.85789483 | D26: T= | E26: =E24+(C12+E25)*TAN(ABS(C22)/2) -> 124.8476866 | F26: Dθ= | G26: =C12*2*(ABS(C22)/2-C24) -> 84.9559548
B27: y0= | C27: =F12*C24/3*(1-C24^2/14+C24^4/440) -> 3.551043118 | D27: c0= | E27: =SQRT(C26^2+C27^2) -> 79.93680801 | F27: CC= | G27: =2*C12*SIN(C25/2) -> 84.67236386
B29: Curva Calculada
C30: Coordenadas | E30: Estaqueamento
B31: Pontos | C31: E | D31: N | E31: Int | F31: Frac | G31: Distancia
B32: TS | C32: =C8+E26*SIN(C20+PI()) -> 911.7193542 | D32: =D8+E26*COS(C20+PI()) -> 911.7193542 | E32: =INT(G32/20) -> 129 | F32: =G32-E32*20 -> 2.2590946 | G32: =G7+D16-E26 -> 2582.259095
B33: SC | C33: =C32+E27*SIN(ABS(C20)+SIGN(C22)*G24) -> 970.6983798 | D33: =D32+E27*COS(ABS(C20+SIGN(C22)*G24)) -> 965.6764465 | E33: =INT(G33/20) -> 133 | F33: =G33-E33*20 -> 2.2590946 | G33: =G32+F12 -> 2662.259095
B34: CS | C34: =C33+G27*SIN(C20+SIGN(C22)*(G24+G25+C25/2)) -> 1044.57622 | D34: =D33+G27*COS(C20+SIGN(C22)*(G24+G25+C25/2)) -> 1007.046411 | E34: =INT(G34/20) -> 137 | F34: =G34-E34*20 -> 7.215049403 | G34: =G33+G26 -> 2747.215049
B35: ST | C35: =C34+E27*SIN(C20+SIGN(C22)*(ABS(C22)-G24)) -> 1121.400305 | D35: =D34+E27*COS(C20+SIGN(C22)*(ABS(C22)-G24)) -> 1029.136073 | E35: =INT(G35/20) -> 141 | F35: =G35-E35*20 -> 7.215049403 | G35: =G34+F12 -> 2827.215049

Sheet CurvaVertical
B2: Curva de concordancia Vertical | F2: 1
B4: L= | C4: 240
B5: i1 em %= | C5: 0.02
B6: i2 em %= | C6: -0.06
B7: A | C7: =C5-C6 -> 0.08
C8: Inteira | D8: Frac
B9: Estaca PIV | C9: 80 | D9: 0 | F9: =C9*20+D9 -> 1600
B10: Cota PIV | C10: 830
B12: Estaca | D12: Obs | E12: Calculos conforme DNIT
B13: Inteira | C13: Frac | E13: Distancia | F13: x | G13: x2 | H13: Ax2/200L | I13: Greide Reto | J13: Greide Conc
B14: 74 | C14: 0 | D14: PCV | E14: =B14*20+C14 -> 1480 | F14: =IF(E14<$F$9,E14-$E$14,$F$9+$C$4/2-E14) -> 0 | G14: =F14^2 -> 0 | H14: =ABS($C$7)*G14/(2*$C$4) -> 0 | I14: =IF(E14<$F$9,$C$10-$C$5*($C$4/2-F14),$C$10+$C$6*($C$4/2-F14)) -> 827.6 | J14: =I14-SIGN($C$7)*H14 -> 827.6
B15: 75 | C15: 0 | E15: =B15*20+C15 -> 1500 | F15: =IF(E15<$F$9,E15-$E$14,$F$9+$C$4/2-E15) -> 20 | G15: =F15^2 -> 400 | H15: =ABS($C$7)*G15/(2*$C$4) -> 0.06666666667 | I15: =IF(E15<$F$9,$C$10-$C$5*($C$4/2-F15),$C$10+$C$6*($C$4/2-F15)) -> 828 | J15: =I15-SIGN($C$7)*H15 -> 827.9333333
B16: 76 | C16: 0 | E16: 1520 | F16: 40 | G16: 1600 | H16: 0.2666666667 | I16: 828.4 | J16: 828.1333333
B17: 77 | C17: 0 | E17: 1540 | F17: 60 | G17: 3600 | H17: 0.6 | I17: 828.8 | J17: 828.2
B18: 78 | C18: 0 | E18: 1560 | F18: 80 | G18: 6400 | H18: 1.066666667 | I18: 829.2 | J18: 828.1333333
B19: 79 | C19: 0 | E19: 1580 | F19: 100 | G19: 10000 | H19: 1.666666667 | I19: 829.6 | J19: 827.9333333
B20: 80 | C20: 0 | D20: PIV | E20: 1600 | F20: 120 | G20: 14400 | H20: 2.4 | I20: 830 | J20: 827.6
B21: 81 | C21: 0 | E21: 1620 | F21: 100 | G21: 10000 | H21: 1.666666667 | I21: 828.8 | J21: 827.1333333
B22: 82 | C22: 0 | E22: 1640 | F22: 80 | G22: 6400 | H22: 1.066666667 | I22: 827.6 | J22: 826.5333333
B23: 83 | C23: 0 | E23: 1660 | F23: 60 | G23: 3600 | H23: 0.6 | I23: 826.4 | J23: 825.8
B24: 84 | C24: 0 | E24: 1680 | F24: 40 | G24: 1600 | H24: 0.2666666667 | I24: 825.2 | J24: 824.9333333
B25: 85 | C25: 0 | E25: 1700 | F25: 20 | G25: 400 | H25: 0.06666666667 | I25: 824 | J25: 823.9333333
B26: 86 | C26: 0 | D26: PTV | E26: 1720 | F26: 0 | G26: 0 | H26: 0 | I26: 822.8 | J26: 822.8

Sheet Terraplenagem
B1: TERRAPLENAGEM- CÁLCULO DOS VOLUMES DE CORTES E ATERROS
B2: La= | C2: 12 | E2: na= | F2: 1.5 | H2: fc= | I2: 1.2 | J2: OBS.: As células em amarelo devem ser
B3: HB= | C3: 5 | E3: lb= | F3: 5 | H3: No estacas | I3: 40 | J3: preenchidas pelo usuário.
B4: Lc= | C4: 10 | E4: nc= | F4: 1
B6: ESTACA | D6: COTA | E6: COTA | F6: DECLIV. DO | G6: COTA | H6: ÁREA(m2) | J6: VOLUME GEOMÉTRICO | L6: VOL ATERRO | M6: COMPENSACAO | N6: VOLUME
B7: INT | C7: INTERMED | D7: TERRENO | E7: GREIDE | F7: TERRENO (%) | G7: VERMELHA | H7: ATERRO | I7: CORTE | J7: ATERRO | K7: CORTE | L7: CORRIGIDO | M7: LATERAL | N7: ACUMULADO
B8: 1 | D8: 1000 | E8: 1000.3 | F8: 0.1 | G8: =E8-D8 -> 0.3 | H8: =aterro(G8,La,na,$C$4,nc,HB,lb,F8) -> 4.764705882 | I8: =corte(G8,La,na,$C$4,nc,HB,lb,F8) -> 0.2222222222 | N8: 1000
B9: =B8+1 -> 2 | D9: 1000 | E9: 1000.3 | F9: 0.1 | G9: 0.4 | H9: 5.882352941 | I9: 0.05555555556 | J9: =((IF(C8=0,IF(B9=0,C9,"100"),100-C8))/2)*(H8+H9) -> 532.3529412 | K9: =((IF(C8=0,IF(B9=0,C9,"100"),100-C8))/2)*(I8+I9) -> 13.88888889 | L9: =J9*$I$2 -> 638.8235294 | M9: =IF(K9<L9,K9,L9) -> 13.88888889 | N9: =N8+K9-L9 -> 375.0653595
B10: =B9+1 -> 3 | D10: 1000 | E10: 1000.3 | F10: 0.1 | G10: 0.4 | H10: =aterro(G10,La,na,$C$4,nc,HB,lb,F10) -> 5.882352941 | I10: =corte(G10,La,na,$C$4,nc,HB,lb,F10) -> 0.05555555556 | J10: =((IF(C9=0,IF(B10=0,C10,"100"),100-C9))/2)*(H9+H10) -> 588.2352941 | K10: =((IF(C9=0,IF(B10=0,C10,"100"),100-C9))/2)*(I9+I10) -> 5.555555556 | L10: =J10*$I$2 -> 705.8823529 | M10: =IF(K10<L10,K10,L10) -> 5.555555556 | N10: =N9+K10-L10 -> -325.2614379
B11: 4 | D11: 1000 | E11: 1000.3 | F11: 0.1 | G11: 0.4 | H11: 5.882352941 | I11: 0.05555555556 | J11: 588.2352941 | K11: 5.555555556 | L11: 705.8823529 | M11: 5.555555556 | N11: -1025.588235
B12: 5 | D12: 1000 | E12: 1000.3 | F12: 0.1 | G12: 0.4 | H12: 5.882352941 | I12: 0.05555555556 | J12: 588.2352941 | K12: 5.555555556 | L12: 705.8823529 | M12: 5.555555556 | N12: -1725.915033
B13: 6 | D13: 1000 | E13: 1000.3 | F13: 0.1 | G13: 0.4 | H13: 5.882352941 | I13: 0.05555555556 | J13: 588.2352941 | K13: 5.555555556 | L13: 705.8823529 | M13: 5.555555556 | N13: -2426.24183
B14: 7 | D14: 1000 | E14: 1000.3 | F14: 0.1 | G14: 0.4 | H14: 5.882352941 | I14: 0.05555555556 | J14: 588.2352941 | K14: 5.555555556 | L14: 705.8823529 | M14: 5.555555556 | N14: -3126.568627
B15: 8 | D15: 1000 | E15: 1000.3 | F15: 0.1 | G15: 0.4 | H15: 5.882352941 | I15: 0.05555555556 | J15: 588.2352941 | K15: 5.555555556 | L15: 705.8823529 | M15: 5.555555556 | N15: -3826.895425
B16: 9 | D16: 1000 | E16: 1000.3 | F16: 0.1 | G16: 0.4 | H16: 5.882352941 | I16: 0.05555555556 | J16: 588.2352941 | K16: 5.555555556 | L16: 705.8823529 | M16: 5.555555556 | N16: -4527.222222
B17: 10 | D17: 1000 | E17: 1000.3 | F17: 0.1 | G17: 0.4 | H17: 5.882352941 | I17: 0.05555555556 | J17: 588.2352941 | K17: 5.555555556 | L17: 705.8823529 | M17: 5.555555556 | N17: -5227.54902
B18: 11 | D18: 1000 | E18: 1000.3 | F18: 0.1 | G18: 0.4 | H18: 5.882352941 | I18: 0.05555555556 | J18: 588.2352941 | K18: 5.555555556 | L18: 705.8823529 | M18: 5.555555556 | N18: -5927.875817
B19: 12 | D19: 1000 | E19: 1000.3 | F19: 0.1 | G19: 0.4 | H19: 5.882352941 | I19: 0.05555555556 | J19: 588.2352941 | K19: 5.555555556 | L19: 705.8823529 | M19: 5.555555556 | N19: -6628.202614
B20: 13 | D20: 1000 | E20: 1000.3 | F20: 0.1 | G20: 0.4 | H20: 5.882352941 | I20: 0.05555555556 | J20: 588.2352941 | K20: 5.555555556 | L20: 705.8823529 | M20: 5.555555556 | N20: -7328.529412
B21: 14 | D21: 1000 | E21: 1000.3 | F21: 0.1 | G21: 0.4 | H21: 5.882352941 | I21: 0.05555555556 | J21: 588.2352941 | K21: 5.555555556 | L21: 705.8823529 | M21: 5.555555556 | N21: -8028.856209
B22: 15 | D22: 1000 | E22: 1000.3 | F22: 0.1 | G22: 0.4 | H22: 5.882352941 | I22: 0.05555555556 | J22: 588.2352941 | K22: 5.555555556 | L22: 705.8823529 | M22: 5.555555556 | N22: -8729.183007
B23: 16 | D23: 1000 | E23: 1000.3 | F23: 0.1 | G23: 0.4 | H23: 5.882352941 | I23: 0.05555555556 | J23: 588.2352941 | K23: 5.555555556 | L23: 705.8823529 | M23: 5.555555556 | N23: -9429.509804
B24: 17 | D24: 1000 | E24: 1000.3 | F24: 0.1 | G24: 0.4 | H24: 5.882352941 | I24: 0.05555555556 | J24: 588.2352941 | K24: 5.555555556 | L24: 705.8823529 | M24: 5.555555556 | N24: -10129.8366
B25: 18 | D25: 1000 | E25: 1000.3 | F25: 0.1 | G25: 0.4 | H25: 5.882352941 | I25: 0.05555555556 | J25: 588.2352941 | K25: 5.555555556 | L25: 705.8823529 | M25: 5.555555556 | N25: -10830.1634
B26: 19 | D26: 1000 | E26: 1000.3 | F26: 0.1 | G26: 0.4 | H26: 5.882352941 | I26: 0.05555555556 | J26: 588.2352941 | K26: 5.555555556 | L26: 705.8823529 | M26: 5.555555556 | N26: -11530.4902
B27: 20 | D27: 1000 | E27: 1000.3 | F27: 0.1 | G27: 0.4 | H27: 5.882352941 | I27: 0.05555555556 | J27: 588.2352941 | K27: 5.555555556 | L27: 705.8823529 | M27: 5.555555556 | N27: -12230.81699
B28: 21 | D28: 1000 | E28: 1000.3 | F28: 0.1 | G28: 0.4 | H28: 5.882352941 | I28: 0.05555555556 | J28: 588.2352941 | K28: 5.555555556 | L28: 705.8823529 | M28: 5.555555556 | N28: -12931.14379
B29: 22 | D29: 1000 | E29: 1000.3 | F29: 0.1 | G29: 0.4 | H29: 5.882352941 | I29: 0.05555555556 | J29: 588.2352941 | K29: 5.555555556 | L29: 705.8823529 | M29: 5.555555556 | N29: -13631.47059
B30: 23 | D30: 1000 | E30: 1000.3 | F30: 0.1 | G30: 0.4 | H30: 5.882352941 | I30: 0.05555555556 | J30: 588.2352941 | K30: 5.555555556 | L30: 705.8823529 | M30: 5.555555556 | N30: -14331.79739
B31: 24 | D31: 1000 | E31: 1000.3 | F31: 0.1 | G31: 0.4 | H31: 5.882352941 | I31: 0.05555555556 | J31: 588.2352941 | K31: 5.555555556 | L31: 705.8823529 | M31: 5.555555556 | N31: -15032.12418
B32: 25 | D32: 1000 | E32: 1000.3 | F32: 0.1 | G32: 0.4 | H32: 5.882352941 | I32: 0.05555555556 | J32: 588.2352941 | K32: 5.555555556 | L32: 705.8823529 | M32: 5.555555556 | N32: -15732.45098
B33: 26 | D33: 1000 | E33: 1000.3 | F33: 0.1 | G33: 0.4 | H33: 5.882352941 | I33: 0.05555555556 | J33: 588.2352941 | K33: 5.555555556 | L33: 705.8823529 | M33: 5.555555556 | N33: -16432.77778
B34: 27 | D34: 1000 | E34: 1000.3 | F34: 0.1 | G34: 0.4 | H34: 5.882352941 | I34: 0.05555555556 | J34: 588.2352941 | K34: 5.555555556 | L34: 705.8823529 | M34: 5.555555556 | N34: -17133.10458
B35: 28 | D35: 1000 | E35: 1000.3 | F35: 0.1 | G35: 0.4 | H35: 5.882352941 | I35: 0.05555555556 | J35: 588.2352941 | K35: 5.555555556 | L35: 705.8823529 | M35: 5.555555556 | N35: -17833.43137
B36: 29 | D36: 1000 | E36: 1000.3 | F36: 0.1 | G36: 0.4 | H36: 5.882352941 | I36: 0.05555555556 | J36: 588.2352941 | K36: 5.555555556 | L36: 705.8823529 | M36: 5.555555556 | N36: -18533.75817
B37: 30 | D37: 1000 | E37: 1000.3 | F37: 0.1 | G37: 0.4 | H37: 5.882352941 | I37: 0.05555555556 | J37: 588.2352941 | K37: 5.555555556 | L37: 705.8823529 | M37: 5.555555556 | N37: -19234.08497
B38: 31 | D38: 1000 | E38: 1000.3 | F38: 0.1 | G38: 0.4 | H38: 5.882352941 | I38: 0.05555555556 | J38: 588.2352941 | K38: 5.555555556 | L38: 705.8823529 | M38: 5.555555556 | N38: -19934.41176
B39: 32 | D39: 1000 | E39: 1000.3 | F39: 0.1 | G39: 0.4 | H39: 5.882352941 | I39: 0.05555555556 | J39: 588.2352941 | K39: 5.555555556 | L39: 705.8823529 | M39: 5.555555556 | N39: -20634.73856
B40: 33 | D40: 1000 | E40: 1000.3 | F40: 0.1 | G40: 0.4 | H40: 5.882352941 | I40: 0.05555555556 | J40: 588.2352941 | K40: 5.555555556 | L40: 705.8823529 | M40: 5.555555556 | N40: -21335.06536
B41: 34 | D41: 1000 | E41: 1000.3 | F41: 0.1 | G41: 0.4 | H41: 5.882352941 | I41: 0.05555555556 | J41: 588.2352941 | K41: 5.555555556 | L41: 705.8823529 | M41: 5.555555556 | N41: -22035.39216
B42: 35 | D42: 1000 | E42: 1000.3 | F42: 0.1 | G42: 0.4 | H42: 5.882352941 | I42: 0.05555555556 | J42: 588.2352941 | K42: 5.555555556 | L42: 705.8823529 | M42: 5.555555556 | N42: -22735.71895
B43: 36 | D43: 1000 | E43: 1000.3 | F43: 0.1 | G43: 0.4 | H43: 5.882352941 | I43: 0.05555555556 | J43: 588.2352941 | K43: 5.555555556 | L43: 705.8823529 | M43: 5.555555556 | N43: -23436.04575
B44: 37 | D44: 1000 | E44: 1000.3 | F44: 0.1 | G44: 0.4 | H44: 5.882352941 | I44: 0.05555555556 | J44: 588.2352941 | K44: 5.555555556 | L44: 705.8823529 | M44: 5.555555556 | N44: -24136.37255
B45: 38 | D45: 1000 | E45: 1000.3 | F45: 0.1 | G45: 0.4 | H45: 5.882352941 | I45: 0.05555555556 | J45: 588.2352941 | K45: 5.555555556 | L45: 705.8823529 | M45: 5.555555556 | N45: -24836.69935
B46: 39 | D46: 1000 | E46: 1000.3 | F46: 0.1 | G46: 0.4 | H46: 5.882352941 | I46: 0.05555555556 | J46: 588.2352941 | K46: 5.555555556 | L46: 705.8823529 | M46: 5.555555556 | N46: -25537.02614
B47: 40 | D47: 1000 | E47: 1000.3 | F47: 0.1 | G47: 0.4 | H47: 5.882352941 | I47: 0.05555555556 | J47: 588.2352941 | K47: 5.555555556 | L47: 705.8823529 | M47: 5.555555556 | N47: -26237.35294
B48: 41 | D48: 1000 | E48: 1000.3 | F48: 0.1 | G48: 0.4 | H48: 5.882352941 | I48: 0.05555555556 | J48: 588.2352941 | K48: 5.555555556 | L48: 705.8823529 | M48: 5.555555556 | N48: -26937.67974
B49: 42 | D49: 1000 | E49: 1000.3 | F49: 0.1 | G49: 0.4 | H49: 5.882352941 | I49: 0.05555555556 | J49: 588.2352941 | K49: 5.555555556 | L49: 705.8823529 | M49: 5.555555556 | N49: -27638.00654
B50: 43 | D50: 1000 | E50: 1000.3 | F50: 0.1 | G50: 0.4 | H50: 5.882352941 | I50: 0.05555555556 | J50: 588.2352941 | K50: 5.555555556 | L50: 705.8823529 | M50: 5.555555556 | N50: -28338.33333
B51: 2 | D51: 1000 | E51: 1000.3 | F51: 0.1 | G51: 0.4 | H51: 5.882352941 | I51: 0.05555555556 | J51: 532.3529412 | K51: 13.88888889 | L51: 585.5882353 | M51: 13.88888889 | N51: 428.3006536
B52: 2 | D52: 1000 | E52: 1000.3 | F52: 0.1 | G52: 0.4 | H52: 5.882352941 | I52: 0.05555555556 | J52: 532.3529412 | K52: 13.88888889 | L52: 585.5882353 | M52: 13.88888889 | N52: 428.3006536
B53: 2 | D53: 1000 | E53: 1000.3 | F53: 0.1 | G53: 0.4 | H53: 5.882352941 | I53: 0.05555555556 | J53: 532.3529412 | K53: 13.88888889 | L53: 585.5882353 | M53: 13.88888889 | N53: 428.3006536
B54: 2 | D54: 1000 | E54: 1000.3 | F54: 0.1 | G54: 0.4 | H54: 5.882352941 | I54: 0.05555555556 | J54: 532.3529412 | K54: 13.88888889 | L54: 585.5882353 | M54: 13.88888889 | N54: 428.3006536
B55: 2 | D55: 1000 | E55: 1000.3 | F55: 0.1 | G55: 0.4 | H55: 5.882352941 | I55: 0.05555555556 | J55: 532.3529412 | K55: 13.88888889 | L55: 585.5882353 | M55: 13.88888889 | N55: 428.3006536
B56: 2 | D56: 1000 | E56: 1000.3 | F56: 0.1 | G56: 0.4 | H56: 5.882352941 | I56: 0.05555555556 | J56: 532.3529412 | K56: 13.88888889 | L56: 585.5882353 | M56: 13.88888889 | N56: 428.3006536
B57: 2 | D57: 1000 | E57: 1000.3 | F57: 0.1 | G57: 0.4 | H57: 5.882352941 | I57: 0.05555555556 | J57: 532.3529412 | K57: 13.88888889 | L57: 585.5882353 | M57: 13.88888889 | N57: 428.3006536
B58: 2 | D58: 1000 | E58: 1000.3 | F58: 0.1 | G58: 0.4 | H58: 5.882352941 | I58: 0.05555555556 | J58: 532.3529412 | K58: 13.88888889 | L58: 585.5882353 | M58: 13.88888889 | N58: 428.3006536
B59: 2 | D59: 1000 | E59: 1000.3 | F59: 0.1 | G59: 0.4 | H59: 5.882352941 | I59: 0.05555555556 | J59: 532.3529412 | K59: 13.88888889 | L59: 585.5882353 | M59: 13.88888889 | N59: 428.3006536
B60: 2 | D60: 1000 | E60: 1000.3 | F60: 0.1 | G60: 0.4 | H60: 5.882352941 | I60: 0.05555555556 | J60: 532.3529412 | K60: 13.88888889 | L60: 585.5882353 | M60: 13.88888889 | N60: 428.3006536
B61: 2 | D61: 1000 | E61: 1000.3 | F61: 0.1 | G61: 0.4 | H61: 5.882352941 | I61: 0.05555555556 | J61: 532.3529412 | K61: 13.88888889 | L61: 585.5882353 | M61: 13.88888889 | N61: 428.3006536
B62: 2 | D62: 1000 | E62: 1000.3 | F62: 0.1 | G62: 0.4 | H62: 5.882352941 | I62: 0.05555555556 | J62: 532.3529412 | K62: 13.88888889 | L62: 585.5882353 | M62: 13.88888889 | N62: 428.3006536
B63: 2 | D63: 1000 | E63: 1000.3 | F63: 0.1 | G63: 0.4 | H63: 5.882352941 | I63: 0.05555555556 | J63: 532.3529412 | K63: 13.88888889 | L63: 585.5882353 | M63: 13.88888889 | N63: 428.3006536
B64: 2 | D64: 1000 | E64: 1000.3 | F64: 0.1 | G64: 0.4 | H64: 5.882352941 | I64: 0.05555555556 | J64: 532.3529412 | K64: 13.88888889 | L64: 585.5882353 | M64: 13.88888889 | N64: 428.3006536
B65: 2 | D65: 1000 | E65: 1000.3 | F65: 0.1 | G65: 0.4 | H65: 5.882352941 | I65: 0.05555555556 | J65: 532.3529412 | K65: 13.88888889 | L65: 585.5882353 | M65: 13.88888889 | N65: 428.3006536
B66: =B65+1 -> 3 | D66: 1000 | E66: 1000.3 | F66: 0.1 | G66: 0.4 | H66: =aterro(G66,La,na,$C$4,nc,HB,lb,F66) -> 5.882352941 | I66: =corte(G66,La,na,$C$4,nc,HB,lb,F66) -> 0.05555555556 | J66: =((IF(C65=0,IF(B66=0,C66,"100"),100-C65))/2)*(H65+H66) -> 588.2352941 | K66: =((IF(C65=0,IF(B66=0,C66,"100"),100-C65))/2)*(I65+I66) -> 5.555555556 | L66: =J66*$I$2 -> 705.8823529 | M66: =IF(K66<L66,K66,L66) -> 5.555555556 | N66: =N65+K66-L66 -> -272.0261438
B67: 4 | D67: 1000 | E67: 1000.3 | F67: 0.1 | G67: 0.4 | H67: 5.882352941 | I67: 0.05555555556 | J67: 588.2352941 | K67: 5.555555556 | L67: 705.8823529 | M67: 5.555555556 | N67: -972.3529412
B68: 5 | D68: 1000 | E68: 1000.3 | F68: 0.1 | G68: 0.4 | H68: 5.882352941 | I68: 0.05555555556 | J68: 588.2352941 | K68: 5.555555556 | L68: 705.8823529 | M68: 5.555555556 | N68: -1672.679739
B69: 6 | D69: 1000 | E69: 1000.3 | F69: 0.1 | G69: 0.4 | H69: 5.882352941 | I69: 0.05555555556 | J69: 588.2352941 | K69: 5.555555556 | L69: 705.8823529 | M69: 5.555555556 | N69: -2373.006536
B70: 2 | D70: 1000 | E70: 1000.3 | F70: 0.1 | G70: =E70-D70 -> 0.3 | H70: =aterro(G70,La,na,$C$4,nc,HB,lb,F70) -> 4.764705882 | I70: =corte(G70,La,na,$C$4,nc,HB,lb,F70) -> 0.2222222222 | J70: =((IF(C69=0,IF(B70=0,C70,"100"),100-C69))/2)*(H69+H70) -> 532.3529412 | K70: =((IF(C69=0,IF(B70=0,C70,"100"),100-C69))/2)*(I69+I70) -> 13.88888889 | L70: =J70*$I$2 -> 638.8235294 | M70: =IF(K70<L70,K70,L70) -> 13.88888889 | N70: =N69+K70-L70 -> -2997.941176
